fUSD/lending_fUSD_20241127
["ID","MTS","AMOUNT","RATE_DAILY","PERIOD"]
[343494407,1732668640883,-312.83982303,0.00016999,2]
[343494408,1732668640893,-500.0,0.00016999,2]
[343494409,1732668640905,-500.0,0.00016999,2]
[343494410,1732668640915,-500.0,0.00016999,2]
[343494411,1732668640925,-338.73,0.00016999,2]
[343494412,1732668640935,-500.0,0.00016999,2]
[343494413,1732668640945,-500.0,0.00016999,2]
[343494414,1732668640956,-500.0,0.00016999,2]
[343494415,1732668640968,-500.0,0.00016999,2]
[343494416,1732668640979,-500.0,0.00016999,2]
[343494417,1732668640991,-210.22081725,0.00016999,2]
[343494418,1732668641002,-484.5,0.00016999,2]
[343494419,1732668641012,-500.0,0.00016999,2]
[343494420,1732668641023,-500.0,0.00016999,2]
[343494421,1732668641033,-500.0,0.00016999,2]
[343494422,1732668641045,-500.0,0.00016999,2]
[343494423,1732668641057,-570.88520485,0.00016999,2]
[343494424,1732668641066,-500.0,0.00016999,2]
[343494425,1732668641076,-500.0,0.00016999,2]
[343494426,1732668641086,-500.0,0.00016999,2]
[343494427,1732668641097,-542.69517398,0.00016999,2]
[343494428,1732668641107,-500.0,0.00016999,2]
[343494429,1732668641120,-500.0,0.00016999,2]
[343494430,1732668641131,-206.1,0.00016999,2]
[343494431,1732668641142,-500.0,0.00016999,2]
[343494432,1732668641152,-500.0,0.00016999,2]
[343494433,1732668641162,-500.0,0.00016999,2]
[343494434,1732668641171,-500.0,0.00016999,2]
[343494435,1732668641181,-500.0,0.00016999,2]
[343494436,1732668641191,-500.0,0.00016999,2]
[343494437,1732668641201,-500.0,0.00016999,2]
[343494438,1732668641210,-500.0,0.00016999,2]
[343494439,1732668641219,-500.0,0.00016999,2]
[343494440,1732668641229,-500.0,0.00016999,2]
[343494441,1732668641239,-500.0,0.00016999,2]
[343494442,1732668641250,-399.95,0.00016999,2]
[343494443,1732668641260,-500.0,0.00016999,2]
[343494444,1732668641270,-500.0,0.00016999,2]
[343494445,1732668641280,-520.25122316,0.00016999,2]
[343494446,1732668641289,-500.0,0.00016999,2]
[343494447,1732668641298,-500.0,0.00016999,2]
[343494448,1732668641311,-500.0,0.00016999,2]
[343494449,1732668641321,-500.0,0.00016999,2]
[343494450,1732668641331,-500.0,0.00016999,2]
[343494451,1732668641341,-500.0,0.00016999,2]
[343494452,1732668641351,-500.0,0.00016999,2]
[343494453,1732668641361,-500.0,0.00016999,2]
[343494454,1732668641370,-500.0,0.00016999,2]
[343494455,1732668641380,-500.0,0.00016999,2]
[343494456,1732668641391,-500.0,0.00016999,2]
[343494457,1732668641400,-500.0,0.00016999,2]
[343494458,1732668641410,-500.0,0.00016999,2]
[343494459,1732668641420,-500.0,0.00016999,2]
[343494460,1732668641429,-500.0,0.00016999,2]
[343494461,1732668641440,-500.0,0.00016999,2]
[343494462,1732668641450,-500.0,0.00016999,2]
[343494463,1732668641460,-500.0,0.00016999,2]
[343494464,1732668641469,-500.0,0.00016999,2]
[343494465,1732668641479,-500.0,0.00016999,2]
[343494466,1732668641490,-500.0,0.00016999,2]
[343494467,1732668641499,-500.0,0.00016999,2]
[343494468,1732668641510,-573.96941732,0.00016999,2]
[343494469,1732668641520,-500.0,0.00016999,2]
[343494470,1732668641530,-500.0,0.00016999,2]
[343494471,1732668641542,-500.0,0.00016999,2]
[343494472,1732668641554,-177.53,0.00016999,2]
[343494473,1732668641565,-1081.43,0.00016999,2]
[343494474,1732668641576,-1081.43,0.00016999,2]
[343494475,1732668641586,-1081.43,0.00016999,2]
[343494476,1732668641597,-1081.43,0.00016999,2]
[343494477,1732668641607,-1081.43,0.00016999,2]
[343494478,1732668641617,-1081.43,0.00016999,2]
[343494479,1732668641627,-1081.43,0.00016999,2]
[343494480,1732668641637,-1081.43,0.00016999,2]
[343494481,1732668641646,-1081.43,0.00016999,2]
[343494482,1732668641656,-1081.43,0.00016999,2]
[343494483,1732668641666,-1081.43,0.00016999,2]
[343494484,1732668641675,-1081.43,0.00016999,2]
[343494485,1732668641685,-1081.43,0.00016999,2]
[343494486,1732668641694,-1081.43,0.00016999,2]
[343494487,1732668641704,-1081.43,0.00016999,2]
[343494488,1732668641713,-2945.26,0.00016999,2]
[343494489,1732668641724,-1081.43,0.00016999,2]
[343494490,1732668641735,-2945.26,0.00016999,2]
[343494491,1732668641745,-1081.43,0.00016999,2]
[343494492,1732668641756,-2945.26,0.00016999,2]
[343494493,1732668641766,-1081.43,0.00016999,2]
[343494494,1732668641776,-2945.26,0.00016999,2]
[343494495,1732668641787,-1081.43,0.00016999,2]
[343494496,1732668641800,-2945.26,0.00016999,2]
[343494497,1732668641815,-1081.43,0.00016999,2]
[343494498,1732668641824,-2945.26,0.00016999,2]
[343494499,1732668641834,-1081.43,0.00016999,2]
[343494500,1732668641845,-2945.26,0.00016999,2]
[343494501,1732668641855,-1081.43,0.00016999,2]
[343494502,1732668641864,-2945.26,0.00016999,2]
[343494503,1732668641876,-1081.62,0.00016999,2]
[343494504,1732668641887,-2945.26,0.00016999,2]
[343494505,1732668641898,-2945.26,0.00016999,2]
[343494506,1732668641908,-2945.26,0.00016999,2]
[343494507,1732668641920,-2945.26,0.00016999,2]
[343494508,1732668641931,-2945.26,0.00016999,2]
[343494509,1732668641941,-2945.26,0.00016999,2]
[343494510,1732668641952,-500.0,0.00016999,2]
[343494511,1732668641962,-2945.26,0.00016999,2]
[343494512,1732668641971,-500.0,0.00016999,2]
[343494513,1732668641981,-2945.26,0.00016999,2]
[343494514,1732668641992,-500.0,0.00016999,2]
[343494515,1732668642001,-2945.26,0.00016999,2]
[343494516,1732668642011,-2945.26,0.00016999,2]
[343494517,1732668642020,-500.0,0.00016999,2]
[343494518,1732668642030,-2945.26,0.00016999,2]
[343494519,1732668642041,-2945.26,0.00016999,2]
[343494520,1732668642050,-2945.26,0.00016999,2]
[343494521,1732668642064,-2945.26,0.00016999,2]
[343494522,1732668642073,-2945.45374797,0.00016999,2]
[343494523,1732668642083,-500.0,0.00016999,2]
[343494524,1732668642092,-500.0,0.00016999,2]
[343494525,1732668642102,-500.0,0.00016999,2]
[343494526,1732668642112,-500.0,0.00016999,2]
[343494527,1732668642122,-500.0,0.00016999,2]
[343494528,1732668642132,-500.0,0.00016999,2]
[343494529,1732668642142,-500.0,0.00016999,2]
[343494530,1732668642151,-500.0,0.00016999,2]
[343494531,1732668642161,-500.0,0.00016999,2]
[343494532,1732668642170,-500.0,0.00016999,2]
[343494533,1732668642180,-500.0,0.00016999,2]
[343494534,1732668642189,-500.0,0.00016999,2]
[343494535,1732668642198,-500.0,0.00016999,2]
[343494536,1732668642208,-168.28862293,0.00016999,2]
[343494537,1732668642217,-500.0,0.00016999,2]
[343494538,1732668642226,-500.0,0.00016999,2]
[343494539,1732668642236,-500.0,0.00016999,2]
[343494540,1732668642246,-500.0,0.00016999,2]
[343494541,1732668642255,-380.12,0.00016999,2]
[343494542,1732668642265,-500.0,0.00016999,2]
[343494543,1732668642274,-500.0,0.00016999,2]
[343494544,1732668642284,-500.0,0.00016999,2]
[343494545,1732668642293,-500.0,0.00016999,2]
[343494546,1732668642306,-500.0,0.00016999,2]
[343494547,1732668642317,-500.0,0.00016999,2]
[343494548,1732668642326,-500.0,0.00016999,2]
[343494549,1732668642336,-500.0,0.00016999,2]
[343494550,1732668642346,-500.0,0.00016999,2]
[343494551,1732668642356,-500.0,0.00016999,2]
[343494552,1732668642365,-500.0,0.00016999,2]
[343494553,1732668642375,-500.0,0.00016999,2]
[343494554,1732668642385,-500.0,0.00016999,2]
[343494555,1732668642395,-500.0,0.00016999,2]
[343494556,1732668642405,-500.0,0.00016999,2]
[343494557,1732668642414,-500.0,0.00016999,2]
[343494558,1732668642424,-500.0,0.00016999,2]
[343494559,1732668642434,-500.0,0.00016999,2]
[343494560,1732668642443,-469.16119666,0.00016999,2]
[343494561,1732668642453,-500.0,0.00016999,2]
[343494562,1732668642462,-500.0,0.00016999,2]
[343494563,1732668642472,-500.0,0.00016999,2]
[343494564,1732668642482,-500.0,0.00016999,2]
[343494565,1732668642492,-500.0,0.00016999,2]
[343494566,1732668642501,-500.0,0.00016999,2]
[343494567,1732668642511,-500.0,0.00016999,2]
[343494568,1732668642520,-197.82,0.00016999,2]
[343494569,1732668642530,-500.0,0.00016999,2]
[343494570,1732668642539,-589.27,0.00016999,2]
[343494571,1732668642549,-500.0,0.00016999,2]
[343494572,1732668642563,-500.0,0.00016999,2]
[343494573,1732668642572,-636.06,0.00016999,2]
[343494574,1732668642581,-500.0,0.00016999,2]
[343494575,1732668642591,-500.0,0.00016999,2]
[343494576,1732668642601,-500.0,0.00016999,2]
[343494577,1732668642611,-500.0,0.00016999,2]
[343494578,1732668642620,-500.0,0.00016999,2]
[343494580,1732668642630,-500.0,0.00016999,2]
[343494581,1732668642639,-500.0,0.00016999,2]
[343494583,1732668642650,-500.0,0.00016999,2]
[343494585,1732668642660,-500.0,0.00016999,2]
[343494586,1732668642670,-500.0,0.00016999,2]
[343494587,1732668642679,-500.0,0.00016999,2]
[343494588,1732668642688,-500.0,0.00016999,2]
[343494589,1732668642697,-442.22,0.00016999,2]
[343494590,1732668642707,-500.0,0.00016999,2]
[343494591,1732668642716,-500.0,0.00016999,2]
[343494592,1732668642725,-500.0,0.00016999,2]
[343494593,1732668642734,-500.0,0.00016999,2]
[343494594,1732668642744,-500.0,0.00016999,2]
[343494595,1732668642753,-500.0,0.00016999,2]
[343494596,1732668642762,-500.0,0.00016999,2]
[343494597,1732668642772,-500.0,0.00016999,2]
[343494598,1732668642782,-500.0,0.00016999,2]
[343494599,1732668642794,-359.52,0.00016999,2]
[343494600,1732668642804,-500.0,0.00016999,2]
[343494601,1732668642814,-500.0,0.00016999,2]
[343494602,1732668642823,-500.0,0.00016999,2]
[343494603,1732668642833,-500.0,0.00016999,2]
[343494604,1732668642843,-500.0,0.00016999,2]
[343494605,1732668642852,-500.0,0.00016999,2]
[343494606,1732668642863,-500.0,0.00016999,2]
[343494607,1732668642873,-500.0,0.00016999,2]
[343494608,1732668642884,-500.0,0.00016999,2]
[343494609,1732668642894,-500.0,0.00016999,2]
[343494610,1732668642904,-500.0,0.00016999,2]
[343494611,1732668642915,-500.0,0.00016999,2]
[343494612,1732668642927,-500.0,0.00016999,2]
[343494613,1732668642936,-500.0,0.00016999,2]
[343494614,1732668642946,-500.0,0.00016999,2]
[343494615,1732668642956,-193.82999999,0.00016999,2]
[343494616,1732668642966,-500.0,0.00016999,2]
[343494617,1732668642975,-500.0,0.00016999,2]
[343494618,1732668642985,-500.0,0.00016999,2]
[343494619,1732668642994,-500.0,0.00016999,2]
[343494620,1732668643003,-500.0,0.00016999,2]
[343494621,1732668643013,-500.0,0.00016999,2]
[343494622,1732668643023,-582.43927307,0.00016999,2]
[343494623,1732668643032,-642.21,0.00016999,2]
[343494624,1732668643042,-642.21,0.00016999,2]
[343494625,1732668643051,-642.21,0.00016999,2]
[343494626,1732668643063,-642.21,0.00016999,2]
[343494627,1732668643072,-642.21,0.00016999,2]
[343494628,1732668643083,-642.21,0.00016999,2]
[343494629,1732668643092,-642.21,0.00016999,2]
[343494630,1732668643102,-642.21,0.00016999,2]
[343494631,1732668643111,-642.21,0.00016999,2]
[343494632,1732668643121,-642.21,0.00016999,2]
[343494633,1732668643130,-642.21,0.00016999,2]
[343494634,1732668643139,-642.21,0.00016999,2]
[343494636,1732668643150,-642.21,0.00016999,2]
[343494638,1732668643159,-642.21,0.00016999,2]
[343494640,1732668643169,-642.21,0.00016999,2]
[343494642,1732668643178,-642.21,0.00016999,2]
[343494644,1732668643188,-642.21,0.00016999,2]
[343494646,1732668643198,-642.21,0.00016999,2]
[343494648,1732668643207,-642.21,0.00016999,2]
[343494650,1732668643217,-642.21,0.00016999,2]
[343494652,1732668643226,-642.21,0.00016999,2]
[343494654,1732668643236,-642.21,0.00016999,2]
[343494656,1732668643245,-642.25,0.00016999,2]
[343494658,1732668643254,-500.0,0.00016999,2]
[343494660,1732668643264,-500.0,0.00016999,2]
[343494662,1732668643273,-500.0,0.00016999,2]
[343494664,1732668643282,-500.0,0.00016999,2]
[343494666,1732668643291,-500.0,0.00016999,2]
[343494668,1732668643300,-500.0,0.00016999,2]
[343494670,1732668643311,-500.0,0.00016999,2]
[343494672,1732668643321,-500.0,0.00016999,2]
[343494674,1732668643330,-500.0,0.00016999,2]
[343494676,1732668643340,-500.0,0.00016999,2]
[343494678,1732668643349,-500.0,0.00016999,2]
[343494680,1732668643361,-500.0,0.00016999,2]
[343494682,1732668643370,-394.38103454,0.00016999,2]
[343494684,1732668643380,-500.0,0.00016999,2]
[343494686,1732668643390,-500.0,0.00016999,2]
[343494688,1732668643400,-500.0,0.00016999,2]
[343494690,1732668643410,-500.0,0.00016999,2]
[343494692,1732668643422,-500.0,0.00016999,2]
[343494694,1732668643432,-500.0,0.00016999,2]
[343494696,1732668643441,-229.1,0.00016999,2]
[343494698,1732668643451,-500.0,0.00016999,2]
[343494700,1732668643461,-500.0,0.00016999,2]
[343494702,1732668643471,-500.0,0.00016999,2]
[343494704,1732668643482,-500.0,0.00016999,2]
[343494706,1732668643493,-500.0,0.00016999,2]
[343494708,1732668643503,-500.0,0.00016999,2]
[343494710,1732668643512,-500.0,0.00016999,2]
[343494712,1732668643521,-500.0,0.00016999,2]
[343494713,1732668643531,-500.0,0.00016999,2]
[343494714,1732668643541,-170.0,0.00016999,2]
[343494715,1732668643551,-500.0,0.00016999,2]
[343494716,1732668643563,-500.0,0.00016999,2]
[343494717,1732668643572,-500.0,0.00016999,2]
[343494718,1732668643581,-211.45,0.00016999,2]
[343494719,1732668643593,-434.25,0.00016999,2]
[343494720,1732668643603,-500.0,0.00016999,2]
[343494721,1732668643613,-500.0,0.00016999,2]
[343494722,1732668643623,-500.0,0.00016999,2]
[343494723,1732668643633,-500.0,0.00016999,2]
[343494724,1732668643643,-500.0,0.00016999,2]
[343494725,1732668643653,-500.0,0.00016999,2]
[343494726,1732668643861,-500.0,0.00016999,2]
[343494727,1732668643874,-500.0,0.00016999,2]
[343494728,1732668643883,-500.0,0.00016999,2]
[343494729,1732668643893,-500.0,0.00016999,2]
[343494730,1732668643903,-500.0,0.00016999,2]
[343494731,1732668643912,-183.24812135,0.00016999,2]
[343494732,1732668643922,-500.0,0.00016999,2]
[343494733,1732668643931,-500.0,0.00016999,2]
[343494734,1732668643941,-500.0,0.00016999,2]
[343494735,1732668643951,-500.0,0.00016999,2]
[343494736,1732668643961,-500.0,0.00016999,2]
[343494737,1732668643971,-500.0,0.00016999,2]
[343494738,1732668643980,-500.0,0.00016999,2]
[343494739,1732668643989,-500.0,0.00016999,2]
[343494740,1732668643999,-500.0,0.00016999,2]
[343494741,1732668644009,-500.0,0.00016999,2]
[343494742,1732668644018,-500.0,0.00016999,2]
[343494743,1732668644028,-2991.5169487,0.00016999,4]
[343494744,1732668644038,-3213032.43829001,0.00017,2]
[343494745,1732668644049,-42771.73767221,0.00017,2]
[343494746,1732668644064,-15402356.55971291,0.00017,2]
[343494747,1732668644288,-4910.38797072,0.00017,2]
[343494748,1732668644302,-308.68147324,0.00017,2]
[343494749,1732668644319,-1260.3842888,0.00017,2]
[343494750,1732668644358,-352.4,0.00016999,2]
[343494751,1732668644368,-49743.79923172,0.00017,2]
[343494752,1732668644384,-78841.61592306,0.00017,2]
[343494753,1732668644396,-67258.92420768,0.00017,2]
[343494754,1732668644407,-331.87199974,0.00017,2]
[343494755,1732668644540,-500.0,0.00016998,2]
[343494756,1732668644550,-500.0,0.00016999,2]
[343494757,1732668644571,-500.0,0.00016999,2]
[343494758,1732668644581,-1422.26755196,0.00017,2]
[343494759,1732668644593,-19323.44081793,0.00017,2]
[343494760,1732668644604,-2490.50527399,0.00017,2]
[343494761,1732668644615,-30308.99465707,0.00017,2]
[343494762,1732668644627,-4271.20995944,0.00017,2]
[343494763,1732668644638,-14193.64030727,0.00017,2]
[343494764,1732668644650,-3002.33360293,0.00017,2]
[343494765,1732668644661,-1084.21913027,0.00017,2]
[343494766,1732668644672,-10524.6981,0.00017,2]
[343494767,1732668644684,-4171.799998,0.00017,2]
[343494768,1732668644767,-188.2,0.00016999,2]
[343494769,1732668644777,-666.11146294,0.00017,2]
[343494772,1732668645724,-500.0,0.00016998,2]
[343494773,1732668645734,-500.0,0.00016999,2]
[343494774,1732668645744,-500.0,0.00016999,2]
[343494775,1732668645754,-484.93581299,0.00016999,2]
[343494776,1732668645766,-15.06418701,0.00016999,2]
[343494777,1732668645776,-491.33,0.00016999,2]
[343494778,1732668645786,-1013.84572503,0.00017,2]
[343494779,1732668646880,-31490.66033924,0.00017,2]
[343494780,1732668646893,-4167.60219677,0.00017,2]
[343494781,1732668646907,-3775.0801,0.00017,2]
[343494782,1732668646928,-9207.3,0.00017,2]
[343494783,1732668646945,-64463.0,0.00017,2]
[343494784,1732668646964,-692.85000708,0.00017,2]
[343494785,1732668666902,585.34169349,0.00023,120]
[343494786,1732668675286,369.1,0.00014658,2]
[343494787,1732668986660,500.0,0.00014001,2]
[343494788,1732669024615,500.0,0.00014001,2]
[343494791,1732669141858,500.0,0.00014001,2]
[343494792,1732669214325,439.0,0.00014001,2]
[343494793,1732669258591,153.47,0.00016658,30]
[343494794,1732669439262,350.64,0.00013823,2]
[343494807,1732669770108,-450.0,0.00015,2]
[343494811,1732669831899,-167.14498631,0.00015401,2]
[343494812,1732669831909,-182.46,0.00015501,2]
[343494813,1732669831919,-177.87,0.00015708,2]
[343494814,1732669831929,-166.6,0.00015714,2]
[343494815,1732669831939,-223.54192712,0.00015729,2]
[343494816,1732669831964,-776.45807288,0.00015729,2]
[343494817,1732669831973,-250.0,0.00015733,2]
[343494818,1732669831983,-150.0,0.00015742,2]
[343494819,1732669831992,-334.69,0.00015821,2]
[343494820,1732669832002,-159.94806564,0.00015824,2]
[343494821,1732669832138,-467.96128147,0.00015824,2]
[343494822,1732669832201,-851.86125289,0.00015824,2]
[343494823,1732669832215,-1751.96,0.00015847,2]
[343494824,1732669832224,-300.0,0.00015923,2]
[343494825,1732669832235,-10102.79,0.00015924,2]
[343494826,1732669832246,-2986.71,0.00015936,2]
[343494827,1732669832256,-153.44,0.00015958,2]
[343494828,1732669832265,-293.04,0.00015974,2]
[343494829,1732669832275,-350.64,0.00016086,2]
[343494831,1732669832285,-162.21,0.00016242,2]
[343494833,1732669832294,-500.0,0.0001631,2]
[343494835,1732669832303,-500.0,0.0001631,2]
[343494837,1732669832314,-500.0,0.0001631,2]
[343494839,1732669832324,-500.0,0.0001631,2]
[343494841,1732669832334,-500.0,0.0001631,2]
[343494843,1732669832344,-500.0,0.0001631,2]
[343494844,1732669832353,-500.0,0.0001631,2]
[343494845,1732669832362,-499.69,0.0001631,2]
[343494846,1732669832372,-500.0,0.0001631,2]
[343494847,1732669832381,-500.0,0.0001631,2]
[343494848,1732669832391,-500.0,0.0001631,2]
[343494849,1732669832404,-500.0,0.0001631,2]
[343494850,1732669832414,-500.0,0.0001631,2]
[343494851,1732669832423,-265.67,0.0001631,2]
[343494852,1732669832434,-2840.33962594,0.000165,2]
[343494853,1732669832444,-166.84,0.00016613,2]
[343494854,1732669832454,-2313.0,0.00016661,2]
[343494855,1732669832469,-150.0,0.00016662,2]
[343494856,1732669832479,-150.0,0.00016662,2]
[343494857,1732669832489,-150.0,0.00016666,2]
[343494858,1732669832499,-150.0,0.00016695,2]
[343494859,1732669832509,-150.0,0.00016699,2]
[343494860,1732669832519,-629.0,0.000167,2]
[343494861,1732669832529,-1998.0,0.000167,2]
[343494862,1732669832538,-150.0,0.000167,2]
[343494863,1732669832548,-1931.0,0.000167,2]
[343494864,1732669832559,-562.0,0.000167,2]
[343494865,1732669832568,-1263.0,0.000167,2]
[343494866,1732669832578,-3754.0,0.000167,2]
[343494867,1732669832587,-816.0,0.000167,2]
[343494868,1732669832597,-82.80922117,0.000167,2]
[343494870,1732669837919,-451.19077883,0.000167,2]
[343494871,1732669837929,-3521.0,0.000167,2]
[343494872,1732669837940,-979.0,0.000167,2]
[343494873,1732669837952,-150.0,0.00016704,2]
[343494874,1732669837969,-150.0,0.00016714,2]
[343494875,1732669837978,-150.0,0.00016719,2]
[343494876,1732669837987,-150.0,0.00016724,2]
[343494877,1732669837997,-150.0,0.00016728,2]
[343494878,1732669838007,-150.0,0.00016732,2]
[343494879,1732669838017,-150.0,0.00016737,2]
[343494880,1732669838027,-150.0,0.00016741,2]
[343494881,1732669838037,-150.0,0.00016745,2]
[343494882,1732669838047,-150.0,0.00016758,2]
[343494883,1732669838057,-150.0,0.00016762,2]
[343494884,1732669838068,-150.0,0.00016763,2]
[343494885,1732669838078,-150.0,0.00016766,2]
[343494886,1732669838089,-150.0,0.00016767,2]
[343494887,1732669838098,-150.0,0.00016768,2]
[343494888,1732669838108,-150.0,0.00016771,2]
[343494889,1732669838119,-150.0,0.00016786,2]
[343494890,1732669838128,-150.0,0.000168,2]
[343494891,1732669838139,-5951.0,0.000168,2]
[343494892,1732669838153,-150.0,0.000168,2]
[343494893,1732669838163,-1164.0,0.000168,2]
[343494894,1732669838173,-571.03304427,0.000168,2]
[343494895,1732669838187,-13111.96695573,0.000168,2]
[343494896,1732669838197,-150.0,0.0001681,2]
[343494897,1732669838207,-1500.0,0.00016823,2]
[343494898,1732669838221,-150.0,0.00016824,2]
[343494899,1732669838232,-1500.0,0.00016828,2]
[343494900,1732669838242,-150.0,0.00016834,2]
[343494901,1732669838251,-150.0,0.00016842,2]
[343494902,1732669838262,-150.0,0.0001688,2]
[343494903,1732669838273,-150.0,0.00016885,2]
[343494904,1732669838283,-150.0,0.0001689,2]
[343494905,1732669838293,-150.0,0.000169,2]
[343494906,1732669838302,-2123.67794724,0.000169,2]
[343494907,1732669838312,-150.0,0.00016925,2]
[343494908,1732669838321,-250.11168,0.00016933,2]
[343494909,1732669838331,-1500.0,0.00016947,2]
[343494910,1732669838341,-1500.0,0.0001695,2]
[343494911,1732669838350,-563.65,0.00016986,2]
[343494912,1732669838360,-3000.0,0.0001699,2]
[343494913,1732669838369,-3000.0,0.0001699,2]
[343494914,1732669838379,-1350.48,0.0001699,2]
[343494915,1732669838392,-150.0,0.00016998,2]
[343494916,1732669838403,-150.0,0.00016998,2]
[343494917,1732669838414,-150.0,0.00016998,2]
[343494918,1732669838425,-150.0,0.00016998,2]
[343494919,1732669838435,-150.0,0.00016998,2]
[343494920,1732669838444,-150.0,0.00016998,2]
[343494921,1732669838454,-150.0,0.00016998,2]
[343494922,1732669838469,-150.0,0.00016998,2]
[343494924,1732669838479,-150.0,0.00016998,2]
[343494926,1732669838489,-150.0,0.00016998,2]
[343494929,1732669838498,-150.0,0.00016998,2]
[343494931,1732669838508,-150.0,0.00016998,2]
[343494933,1732669838517,-506.70432072,0.00016998,2]
[343494934,1732669838526,-500.0,0.00016998,2]
[343494937,1732669838536,-500.0,0.00016998,2]
[343494938,1732669838545,-500.0,0.00016998,2]
[343494940,1732669838555,-381.5856562,0.00016998,2]
[343494942,1732669838564,-500.0,0.00016998,2]
[343494944,1732669838574,-500.0,0.00016998,2]
[343494946,1732669838583,-363.803,0.00016998,2]
[343494947,1732669838592,-500.0,0.00016998,2]
[343494948,1732669838601,-500.0,0.00016998,2]
[343494949,1732669838611,-863.64,0.00016998,2]
[343494951,1732669838620,-500.0,0.00016998,2]
[343494953,1732669838629,-500.0,0.00016998,2]
[343494955,1732669838639,-2822.54,0.00016998,2]
[343494957,1732669838648,-500.0,0.00016998,2]
[343494960,1732669838658,-500.0,0.00016998,2]
[343494963,1732669838667,-500.0,0.00016998,2]
[343494965,1732669838676,-500.0,0.00016998,2]
[343494967,1732669838685,-500.0,0.00016998,2]
[343494969,1732669838695,-500.0,0.00016998,2]
[343494971,1732669838704,-500.0,0.00016998,2]
[343494973,1732669838717,-500.0,0.00016998,2]
[343494975,1732669838727,-500.0,0.00016998,2]
[343494977,1732669838736,-500.0,0.00016998,2]
[343494979,1732669838745,-615.45,0.00016998,2]
[343494981,1732669838754,-500.0,0.00016998,2]
[343494983,1732669838764,-500.0,0.00016998,2]
[343494985,1732669838775,-500.0,0.00016998,2]
[343494987,1732669838785,-500.0,0.00016998,2]
[343494989,1732669838794,-500.0,0.00016998,2]
[343494991,1732669838803,-500.0,0.00016998,2]
[343494993,1732669838813,-301.96982066,0.00016998,2]
[343494995,1732669838822,-500.0,0.00016998,2]
[343494997,1732669838834,-1000.0,0.00016999,2]
[343494999,1732669838843,-500.39023609,0.00016999,2]
[343495001,1732669838854,-500.0,0.00016999,2]
[343495003,1732669838863,-280.06336578,0.00016999,2]
[343495005,1732669838873,-1194.43,0.00016999,2]
[343495007,1732669838883,-438.39,0.00016999,2]
[343495009,1732669838894,-500.0,0.00016999,2]
[343495011,1732669838904,-500.0,0.00016999,2]
[343495013,1732669838913,-260.5,0.00016999,2]
[343495014,1732669838923,-500.0,0.00016999,2]
[343495015,1732669838933,-500.0,0.00016999,2]
[343495016,1732669838942,-1517.3748,0.00016999,2]
[343495017,1732669838952,-500.0,0.00016999,2]
[343495018,1732669838965,-211.45,0.00016999,2]
[343495019,1732669838974,-394.38103454,0.00016999,2]
[343495020,1732669838983,-500.0,0.00016999,2]